lending/lending_fUSD_20251022
["ID","MTS","AMOUNT","RATE_DAILY","PERIOD"]
[392053948,1761121840593,-250.0,0.00033999,30]
[392053949,1761121840603,-1000.0,0.00033999,30]
[392053950,1761121840612,-151.0,0.00033999,30]
[392053951,1761121840621,-207.4,0.00033999,30]
[392053952,1761121840631,-500.0,0.00033999,30]
[392053953,1761121840640,-500.0,0.00033999,30]
[392053954,1761121840650,-1000.0,0.00033999,30]
[392053955,1761121840659,-500.0,0.00033999,30]
[392053956,1761121840668,-250.0,0.00033999,30]
[392053957,1761121840678,-1000.0,0.00033999,30]
[392053958,1761121840691,-262.26753221,0.00033999,30]
[392053959,1761121840700,-215.0738,0.00033999,30]
[392053960,1761121840710,-1000.0,0.00033999,30]
[392053961,1761121840719,-500.0,0.00033999,30]
[392053962,1761121840729,-500.0,0.00033999,30]
[392053963,1761121840739,-500.0,0.00033999,30]
[392053964,1761121840748,-250.0,0.00033999,30]
[392053965,1761121840758,-223.0315306,0.00033999,30]
[392053966,1761121840768,-1000.0,0.00033999,30]
[392053967,1761121840778,-500.0,0.00033999,30]
[392053968,1761121840788,-500.0,0.00033999,30]
[392053969,1761121840800,-500.0,0.00033999,30]
[392053970,1761121840809,-250.0,0.00033999,30]
[392053971,1761121840819,-231.28369723,0.00033999,30]
[392053972,1761121840828,-1000.0,0.00033999,30]
[392053973,1761121840837,-500.0,0.00033999,30]
[392053974,1761121840847,-500.0,0.00033999,30]
[392053975,1761121840856,-250.0,0.00033999,30]
[392053976,1761121840866,-500.0,0.00033999,30]
[392053977,1761121840875,-239.84119403,0.00033999,30]
[392053978,1761121840885,-1000.0,0.00033999,30]
[392053979,1761121840894,-200.0,0.00033999,30]
[392053980,1761121840904,-500.0,0.00033999,30]
[392053981,1761121840915,-250.0,0.00033999,30]
[392053982,1761121840925,-500.0,0.00033999,30]
[392053983,1761121840935,-248.71531821,0.00033999,30]
[392053984,1761121840944,-1000.0,0.00033999,30]
[392053985,1761121840955,-200.0,0.00033999,30]
[392053986,1761121840964,-500.0,0.00033999,30]
[392053987,1761121840973,-250.0,0.00033999,30]
[392053988,1761121840983,-500.0,0.00033999,30]
[392053989,1761121840992,-500.0,0.00033999,30]
[392053990,1761121841001,-172.14869259,0.00033999,30]
[392053991,1761121841011,-500.0,0.00033999,30]
[392053992,1761121841020,-1000.0,0.00033999,30]
[392053993,1761121841030,-250.0,0.00033999,30]
[392053994,1761121841039,-500.0,0.00033999,30]
[392053995,1761121841050,-500.0,0.00033999,30]
[392053996,1761121841059,-500.0,0.00033999,30]
[392053997,1761121841068,-1000.0,0.00033999,30]
[392053998,1761121841077,-200.0,0.00033999,30]
[392053999,1761121841086,-1000.0,0.00033999,30]
[392054000,1761121841095,-482.21016829,0.00033999,30]
[392054009,1761121841353,-2548.0,0.00031343,2]
[392054010,1761121841363,-150.0,0.0003388,3]
[392054011,1761121841505,-17.78983171,0.00033999,30]
[392054012,1761121841515,-500.0,0.00033999,30]
[392054013,1761121841525,-500.0,0.00033999,30]
[392054014,1761121841534,-500.0,0.00033999,30]
[392054015,1761121841543,-250.0,0.00033999,30]
[392054016,1761121841553,-1000.0,0.00033999,30]
[392054017,1761121841563,-200.0,0.00033999,30]
[392054018,1761121841572,-1000.0,0.00033999,30]
[392054019,1761121841581,-500.0,0.00033999,30]
[392054020,1761121841591,-500.0,0.00033999,30]
[392054021,1761121841600,-500.0,0.00033999,30]
[392054022,1761121841609,-250.0,0.00033999,30]
[392054023,1761121841619,-1000.0,0.00033999,30]
[392054024,1761121841628,-200.0,0.00033999,30]
[392054025,1761121841637,-1000.0,0.00033999,30]
[392054026,1761121841646,-500.0,0.00033999,30]
[392054027,1761121841655,-500.0,0.00033999,30]
[392054028,1761121841665,-1000.0,0.00033999,30]
[392054029,1761121841674,-1000.0,0.00033999,30]
[392054030,1761121841684,-500.0,0.00033999,30]
[392054031,1761121841693,-200.0,0.00033999,30]
[392054032,1761121841703,-500.0,0.00033999,30]
[392054033,1761121841713,-520.0,0.00033999,30]
[392054034,1761121841722,-1000.0,0.00033999,30]
[392054035,1761121841733,-500.0,0.00033999,30]
[392054036,1761121841743,-500.0,0.00033999,30]
[392054037,1761121841752,-293.19711071,0.00033999,30]
[392054038,1761121841762,-600.0,0.00033999,30]
[392054039,1761121841772,-539.24,0.00033999,30]
[392054040,1761121841782,-500.0,0.00033999,30]
[392054041,1761121841791,-500.0,0.00033999,30]
[392054042,1761121841802,-600.0,0.00033999,30]
[392054043,1761121841811,-1000.0,0.00033999,30]
[392054044,1761121841822,-559.19188,0.00033999,30]
[392054045,1761121841831,-500.0,0.00033999,30]
[392054046,1761121841841,-500.0,0.00033999,30]
[392054047,1761121841851,-151.0,0.00033999,30]
[392054048,1761121841860,-600.0,0.00033999,30]
[392054049,1761121841869,-1000.0,0.00033999,30]
[392054050,1761121841879,-579.88197956,0.00033999,30]
[392054051,1761121841888,-500.0,0.00033999,30]
[392054052,1761121841898,-151.0,0.00033999,30]
[392054053,1761121841907,-500.0,0.00033999,30]
[392054054,1761121841916,-600.0,0.00033999,30]
[392054055,1761121841926,-250.0,0.00033999,30]
[392054056,1761121841935,-1000.0,0.00033999,30]
[392054057,1761121841944,-601.3376128,0.00033999,30]
[392054058,1761121841953,-151.0,0.00033999,30]
[392054059,1761121841962,-600.0,0.00033999,30]
[392054060,1761121841971,-500.0,0.00033999,30]
[392054061,1761121841980,-1000.0,0.00033999,30]
[392054062,1761121841990,-250.0,0.00033999,30]
[392054063,1761121841998,-623.58710448,0.00033999,30]
[392054064,1761121842008,-500.0,0.00033999,30]
[392054065,1761121842017,-151.0,0.00033999,30]
[392054066,1761121842026,-500.0,0.00033999,30]
[392054067,1761121842035,-600.0,0.00033999,30]
[392054068,1761121842044,-1000.0,0.00033999,30]
[392054069,1761121842054,-250.0,0.00033999,30]
[392054070,1761121842063,-646.65982734,0.00033999,30]
[392054071,1761121842072,-500.0,0.00033999,30]
[392054072,1761121842081,-500.0,0.00033999,30]
[392054073,1761121842090,-151.0,0.00033999,30]
[392054074,1761121842099,-600.0,0.00033999,30]
[392054075,1761121842108,-1000.0,0.00033999,30]
[392054076,1761121842117,-250.0,0.00033999,30]
[392054077,1761121842126,-670.58624095,0.00033999,30]
[392054078,1761121842135,-500.0,0.00033999,30]
[392054079,1761121842144,-600.0,0.00033999,30]
[392054080,1761121842153,-151.0,0.00033999,30]
[392054081,1761121842162,-1000.0,0.00033999,30]
[392054082,1761121842171,-250.0,0.00033999,30]
[392054083,1761121842180,-695.39793187,0.00033999,30]
[392054084,1761121842189,-297.37581837,0.00033999,30]
[392054085,1761121842199,-207.8102271,0.00033999,30]
[392054086,1761121842208,-600.0,0.00033999,30]
[392054087,1761121842216,-1000.0,0.00033999,30]
[392054088,1761121842226,-250.0,0.00033999,30]
[392054089,1761121842235,-721.12765535,0.00033999,30]
[392054090,1761121842244,-600.0,0.00033999,30]
[392054091,1761121842253,-1000.0,0.00033999,30]
[392054092,1761121842262,-250.0,0.00033999,30]
[392054093,1761121842271,-747.8093786,0.00033999,30]
[392054094,1761121842280,-600.0,0.00033999,30]
[392054095,1761121842289,-1000.0,0.00033999,30]
[392054096,1761121842299,-250.0,0.00033999,30]
[392054097,1761121842308,-775.47832561,0.00033999,30]
[392054098,1761121842317,-600.0,0.00033999,30]
[392054099,1761121842328,-1000.0,0.00033999,30]
[392054100,1761121842340,-250.0,0.00033999,30]
[392054101,1761121842350,-200.0,0.00033999,30]
[392054102,1761121842359,-151.0,0.00033999,30]
[392054103,1761121842368,-276.7530595,0.00033999,30]
[392054104,1761121842378,-600.0,0.00033999,30]
[392054105,1761121842387,-1000.0,0.00033999,30]
[392054106,1761121842396,-200.0,0.00033999,30]
[392054107,1761121842407,-250.0,0.00033999,30]
[392054108,1761121842416,-151.0,0.00033999,30]
[392054109,1761121842426,-600.0,0.00033999,30]
[392054110,1761121842435,-250.0,0.00033999,30]
[392054111,1761121842444,-250.0,0.00033999,30]
[392054112,1761121842454,-200.0,0.00033999,30]
[392054113,1761121842463,-1000.0,0.00033999,30]
[392054114,1761121842473,-151.0,0.00033999,30]
[392054115,1761121842482,-600.0,0.00033999,30]
[392054116,1761121842491,-250.0,0.00033999,30]
[392054117,1761121842501,-211.01319552,0.00033999,30]
[392054118,1761121842521,-38.98680448,0.00033999,30]
[392054119,1761121842531,-308.74023011,0.00033999,30]
[392054120,1761121842540,-1000.0,0.00033999,30]
[392054121,1761121842550,-151.0,0.00033999,30]
[392054122,1761121842559,-600.0,0.00033999,30]
[392054123,1761121842568,-250.0,0.00033999,30]
[392054124,1761121842578,-250.0,0.00033999,30]
[392054125,1761121842587,-1000.0,0.00033999,30]
[392054126,1761121842596,-151.0,0.00033999,30]
[392054127,1761121842605,-600.0,0.00033999,30]
[392054128,1761121842615,-250.0,0.00033999,30]
[392054129,1761121842625,-250.0,0.00033999,30]
[392054130,1761121842634,-151.0,0.00033999,30]
[392054131,1761121842644,-600.0,0.00033999,30]
[392054132,1761121842653,-250.0,0.00033999,30]
[392054133,1761121842662,-250.0,0.00033999,30]
[392054135,1761121842672,-151.0,0.00033999,30]
[392054136,1761121842681,-262.8638086,0.00033999,30]
[392054137,1761121842690,-250.0,0.00033999,30]
[392054138,1761121842699,-250.0,0.00033999,30]
[392054139,1761121842709,-151.0,0.00033999,30]
[392054140,1761121842718,-250.0,0.00033999,30]
[392054141,1761121842727,-250.0,0.00033999,30]
[392054142,1761121842737,-151.0,0.00033999,30]
[392054143,1761121842747,-250.0,0.00033999,30]
[392054144,1761121842756,-250.0,0.00033999,30]
[392054145,1761121842766,-250.0,0.00033999,30]
[392054146,1761121842775,-250.0,0.00033999,30]
[392054147,1761121842784,-151.0,0.00033999,30]
[392054148,1761121842797,-151.0,0.00033999,30]
[392054149,1761121842807,-250.0,0.00033999,30]
[392054150,1761121842817,-250.0,0.00033999,30]
[392054151,1761121842826,-151.0,0.00033999,30]
[392054152,1761121842836,-151.0,0.00033999,30]
[392054153,1761121842845,-250.0,0.00033999,30]
[392054154,1761121842855,-151.0,0.00033999,30]
[392054155,1761121842864,-151.0,0.00033999,30]
[392054156,1761121842874,-250.0,0.00033999,30]
[392054157,1761121842884,-151.0,0.00033999,30]
[392054158,1761121842893,-151.0,0.00033999,30]
[392054159,1761121842902,-250.0,0.00033999,30]
[392054160,1761121842911,-151.0,0.00033999,30]
[392054161,1761121842921,-151.0,0.00033999,30]
[392054162,1761121842930,-250.0,0.00033999,30]
[392054163,1761121842939,-151.0,0.00033999,30]
[392054164,1761121842948,-151.0,0.00033999,30]
[392054165,1761121842958,-250.0,0.00033999,30]
[392054166,1761121842968,-151.0,0.00033999,30]
[392054167,1761121842978,-256.55444803,0.00033999,30]
[392054168,1761121842988,-250.0,0.00033999,30]
[392054169,1761121842999,-151.0,0.00033999,30]
[392054170,1761121843008,-250.0,0.00033999,30]
[392054171,1761121843018,-151.0,0.00033999,30]
[392054172,1761121843027,-250.0,0.00033999,30]
[392054173,1761121843037,-151.0,0.00033999,30]
[392054174,1761121843047,-250.0,0.00033999,30]
[392054175,1761121843056,-151.0,0.00033999,30]
[392054176,1761121843066,-250.0,0.00033999,30]
[392054177,1761121843075,-151.0,0.00033999,30]
[392054178,1761121843084,-151.0,0.00033999,30]
[392054179,1761121843093,-151.0,0.00033999,30]
[392054180,1761121843101,-151.0,0.00033999,30]
[392054181,1761121843111,-151.0,0.00033999,30]
[392054182,1761121843120,-234.1976058,0.00033999,30]
[392054183,1761121843129,-608.79,0.00033999,2]
[392054184,1761121843138,-500.0,0.00033999,120]
[392054185,1761121843147,-59240.0,0.00034,7]
[392054186,1761121843157,-200.21989267,0.00034,30]
[392054187,1761121843166,-6849.80501621,0.00034,30]
[392054188,1761121843176,-500.0,0.00034,2]
[392054189,1761121843185,-10394.52333983,0.00034,30]
[392054190,1761121843195,-2566.69,0.00034,30]
[392054191,1761121843204,-160.29359179,0.00034,2]
[392054192,1761121843213,-30612.76748915,0.00034,12]
[392054193,1761121843222,-50000.0,0.00034,10]
[392054194,1761121843231,-150.0,0.00034,11]
[392054195,1761121843240,-200.0,0.00034,2]
[392054196,1761121843249,-300.0,0.00034,15]
[392054197,1761121843258,-300.0,0.00034,15]
[392054198,1761121843267,-50312.75669119,0.00034,30]
[392054199,1761121843276,-2325.43531039,0.00034,7]
[392054200,1761121843286,-152.0,0.00034,7]
[392054201,1761121843295,-151.0,0.00034,7]
[392054203,1761121843304,-1234.0,0.00034,7]
[392054205,1761121843313,-151.0,0.00034,7]
[392054207,1761121843322,-152.0,0.00034,7]
[392054208,1761121843335,-171.30090019,0.00034,7]
[392054209,1761121843344,-152.0,0.00034,7]
[392054210,1761121843353,-151.0,0.00034,7]
[392054211,1761121843362,-199.69926465,0.00034,7]
[392054212,1761121843371,-1034.30073535,0.00034,7]
[392054213,1761121843380,-151.0,0.00034,7]
[392054214,1761121843389,-151.0,0.00034,7]
[392054215,1761121843398,-151.0,0.00034,7]
[392054216,1761121843407,-151.0,0.00034,7]
[392054217,1761121843416,-151.0,0.00034,7]
[392054218,1761121843425,-151.0,0.00034,7]
[392054219,1761121843434,-151.0,0.00034,7]
[392054220,1761121843443,-151.0,0.00034,7]
[392054221,1761121843453,-151.0,0.00034,7]
[392054222,1761121843462,-151.0,0.00034,7]
[392054223,1761121843471,-151.0,0.00034,7]
[392054224,1761121843480,-153.44985107,0.00034,7]
[392054225,1761121843490,-191.44501357,0.00034,7]
[392054226,1761121843499,-150.0,0.00034004,2]
[392054227,1761121843508,-500.0,0.00034004,2]
[392054228,1761121843518,-500.0,0.00034004,2]
[392054229,1761121843527,-150.0,0.00034004,2]
[392054230,1761121843536,-500.0,0.00034004,2]
[392054231,1761121843546,-3653.94612212,0.00034011,3]
[392054232,1761121843701,-253.04784901,0.00034011,3]
[392054233,1761121843714,-7243.84223619,0.00034011,3]
[392054234,1761121843725,-575.84246072,0.00034011,3]
[392054235,1761121843737,-348.93830026,0.00034011,3]
[392054236,1761121843746,-509.91183313,0.00034017,120]
[392054237,1761121843756,-614.60902936,0.00034017,120]
[392054238,1761121843766,-415.79283725,0.00034017,120]
[392054239,1761121843784,-84.20716275,0.00034017,120]
[392054240,1761121843794,-500.0,0.00034017,120]
[392054241,1761121843803,-500.0,0.00034017,120]
[392054242,1761121843812,-152.6419951,0.00034017,120]
[392054243,1761121843821,-150.0,0.00034018,2]
[392054244,1761121843830,-166.6,0.00034021,2]
[392054245,1761121843839,-374.50317124,0.00034028,2]
[392054246,1761121843851,-4289.61028403,0.00034028,2]
[392054247,1761121843863,-410.51591373,0.00034028,2]
[392054248,1761121843872,-681.62316727,0.00034028,2]
[392054249,1761121843883,-2599.62282328,0.00034028,2]
[392054250,1761121843894,-1718.75400945,0.00034028,2]
[392054251,1761121843903,-5000.0,0.00034028,2]
[392054252,1761121843913,-5000.0,0.00034028,2]
[392054253,1761121843923,-5000.0,0.00034028,2]
[392054254,1761121843932,-730.0,0.00034028,5]
[392054255,1761121843940,-435.0,0.00034028,5]
[392054256,1761121843949,-608.79,0.00034029,2]
[392054257,1761121843959,-500.0,0.00034029,120]
[392054258,1761121843968,-171.89029799,0.0003403,2]
[392054259,1761121843977,-354.31144024,0.00034039,30]
[392054260,1761121843986,-5723.64915972,0.0003404,30]
[392054261,1761121844012,-7494.01879473,0.0003404,30]
[392054262,1761121844286,-1251.56,0.0003404,30]
[392054263,1761121844298,-1226.60844453,0.0003404,30]
[392054264,1761121844473,-2503.12,0.0003404,30]
[392054265,1761121844483,-1182.47375131,0.0003404,30]
[392054266,1761121844495,-391.99510999,0.0003404,30]
[392054270,1761121845980,-303.8,0.0003404,30]
[392054279,1761121883144,151.0,0.00017879,2]
[392054281,1761122016161,68589.45,0.00030137,120]
[392054284,1761122527906,11409.69,7.945e-05,2]
[392054285,1761122535935,151.0,0.00017483,2]
[392054286,1761122552297,151.0,0.00017436,2]
[392054287,1761122568711,93.4090512,0.00017354,2]
[392054288,1761122568735,57.5909488,0.00017354,2]
[392054289,1761122585087,151.0,0.00017334,2]
[392054290,1761122601344,151.0,0.00017331,2]
[392054291,1761122618177,151.0,0.0001732,2]
[392054292,1761122634682,151.0,0.00017309,2]
[392054293,1761122652105,151.0,0.00017308,2]
[392054294,1761122669030,151.0,0.00017317,2]
[392054295,1761122685694,151.0,0.00017328,2]
[392054296,1761122702139,151.0,0.00017336,2]
[392054297,1761122946964,174.77861309,0.00029664,120]
[392054299,1761123004652,1363.97351189,0.00029153,120]
[392054300,1761123016056,448.55979883,0.0003013,120]
[392054302,1761123032063,-382.35999,0.00022,30]
[392054303,1761123032170,-28431.36315411,0.00022,30]
[392054304,1761123032338,-420.0,0.00022,30]
[392054305,1761123032349,-2473.6243003,0.00022,30]
[392054306,1761123032361,-515.71559737,0.00022,30]
[392054307,1761123032371,-2172.30999241,0.00022,30]
[392054308,1761123032410,-1650.0,0.00022,30]
[392054311,1761123032932,10000.0,0.0002,2]
[392054312,1761123037963,-1199.12648176,0.00022,30]
[392054313,1761123037973,-250.0,0.000242,2]
[392054314,1761123037983,-195.0,0.000242,2]
[392054315,1761123037992,-250.0,0.00028306,2]
[392054316,1761123038005,-250.0,0.00029664,2]
[392054317,1761123038015,-400.0,0.0003,2]
[392054318,1761123038025,-1254.25665404,0.0003042,2]
[392054319,1761123038034,-448.93019671,0.00030455,30]
[392054320,1761123038045,-1965.58731773,0.00030455,2]
[392054321,1761123038055,-1600.0,0.00030727,2]
[392054322,1761123038065,-4000.0,0.00030728,30]
[392054323,1761123038075,-562.34,0.00030754,2]
[392054324,1761123038086,-250.0,0.00030754,7]
[392054325,1761123038096,-400.0,0.00030765,2]
[392054326,1761123038106,-5.05004435,0.00030766,2]
[392054327,1761123038148,-272.36141139,0.00030766,2]
[392054328,1761123038171,-3218.98854426,0.00030766,2]
[392054329,1761123038180,-315.39913104,0.00030772,2]
[392054330,1761123038189,-9999.99,0.00030998,2]
[392054331,1761123038199,-411.61346988,0.00030998,2]
[392054332,1761123038209,-1200.0,0.00030999,2]
[392054333,1761123038218,-5578.9634754,0.00030999,2]
[392054340,1761123040098,-420.86114321,0.00030999,2]
[392054341,1761123040152,-2992.95538139,0.00030999,2]
[392054342,1761123040318,-173.0,0.00030999,2]
[392054343,1761123040327,-6371.64,0.00030999,2]
[392054344,1761123040337,-326.8,0.00030999,2]
[392054345,1761123040346,-644.82401139,0.00031,4]
[392054346,1761123040355,-21282.06,0.00031,2]
[392054347,1761123040364,-999.99,0.00031,2]
[392054348,1761123040374,-258.96,0.00031,10]
[392054349,1761123040383,-150.99,0.00031,2]
[392054350,1761123040394,-9999.99,0.00031,2]
[392054351,1761123040403,-419.0,0.0003108,7]
[392054352,1761123040413,-198.73806038,0.000311,5]
[392054353,1761123040423,-746.02,0.000311,7]
[392054354,1761123040432,-575.054,0.000311,28]
[392054355,1761123040441,-746.02,0.00031374,7]
[392054356,1761123040450,-746.02,0.00031648,7]
[392054357,1761123040459,-500.94760178,0.0003168,5]
[392054358,1761123040468,-500.0,0.0003168,5]
[392054359,1761123040477,-375.69831699,0.0003168,5]
[392054360,1761123040486,-500.0,0.0003168,5]
[392054361,1761123040495,-500.91384209,0.0003168,5]
[392054362,1761123040504,-500.0,0.0003168,5]
[392054363,1761123040513,-502.86355596,0.0003168,5]
[392054364,1761123040522,-500.0,0.0003168,5]
[392054365,1761123040531,-506.51925215,0.0003168,3]
[392054366,1761123040542,-419.0,0.0003169,2]
[392054367,1761123040551,-165.72,0.00031704,2]
[392054368,1761123040561,-277.82081621,0.00031717,2]
[392054369,1761123040571,-500.0,0.00031757,5]
[392054370,1761123040580,-500.0,0.00031757,5]
[392054371,1761123040589,-500.0,0.00031757,2]
[392054372,1761123040598,-183.1,0.00031761,2]
[392054373,1761123040607,-251.91,0.00031844,2]
[392054374,1761123040616,-419.0,0.00031897,2]
[392054375,1761123040625,-746.02,0.00031922,7]
[392054376,1761123040634,-2051.0,0.00031946,2]
[392054377,1761123040644,-572.0,0.00031946,2]
[392054378,1761123040653,-3410.0,0.00031946,2]
[392054379,1761123040662,-786.0,0.00031946,2]
[392054380,1761123040671,-1409.616,0.00031946,2]
[392054381,1761123040680,-605.0,0.00031946,2]
[392054382,1761123040689,-1590.0,0.00031946,2]
[392054383,1761123040698,-817.0,0.00031946,2]
[392054384,1761123040707,-150.49,0.00031946,2]
[392054385,1761123040716,-150.0,0.00031946,2]
[392054386,1761123040725,-2591.0,0.00031946,2]
[392054387,1761123040734,-3808.08792308,0.00031946,2]
[392054388,1761123040905,-2628.91207692,0.00031946,2]
[392054389,1761123040914,-1190.471,0.00031946,2]
[392054390,1761123040925,-1000.0,0.00032,2]
[392054391,1761123040934,-3923.0,0.00032014,2]
[392054392,1761123040945,-746.02,0.00032196,7]
[392054393,1761123040954,-644.8240114,0.00032222,5]
[392054394,1761123040963,-526.48462508,0.00032228,5]
[392054395,1761123040973,-1000.0,0.00032228,5]
[392054396,1761123040982,-1444.14129321,0.00032258,2]
[392054397,1761123040993,-464.71814964,0.00032305,5]
[392054398,1761123041004,-1000.0,0.00032305,2]
[392054399,1761123041014,-11533.26,0.00032322,2]
[392054400,1761123041023,-623.01837714,0.00032357,2]
[392054401,1761123041033,-1000.0,0.00032357,2]
[392054402,1761123041042,-80825.15046661,0.00032358,37]
[392054403,1761123041055,-2530.52212605,0.00032358,37]
[392054404,1761123041071,-2054.86838987,0.00032358,37]
[392054405,1761123041083,-2774.07901747,0.00032358,37]
[392054406,1761123041093,-4240.11167838,0.00032358,2]
[392054407,1761123041102,-500.0,0.00032373,5]
[392054408,1761123041112,-3923.0,0.00032459,2]
[392054409,1761123041122,-746.02,0.0003247,7]
[392054410,1761123041131,-1444.14129314,0.00032552,2]
[392054411,1761123041141,-600.0,0.00032644,7]
[392054412,1761123041150,-500.0,0.00032644,7]
[392054413,1761123041159,-500.0,0.00032644,7]
[392054414,1761123041168,-746.02,0.00032744,7]
[392054415,1761123041178,-1500.0,0.00032776,5]
[392054416,1761123041187,-1444.14129314,0.00032845,2]
[392054417,1761123041197,-419.0,0.00032847,2]
[392054418,1761123041206,-1500.0,0.00032853,2]
[392054419,1761123041215,-537.3,0.00032899,2]
[392054420,1761123041225,-1000.0,0.000329,2]
[392054421,1761123041234,-10840.2149,0.000329,2]
[392054422,1761123041244,-1000.0,0.00032921,5]
[392054423,1761123041253,-3923.0,0.00032981,7]
[392054424,1761123041263,-500.0,0.00033008,30]
[392054425,1761123041272,-500.0,0.00033008,7]
[392054426,1761123041282,-500.0,0.00033008,2]
[392054427,1761123041291,-502.67144752,0.00033008,30]
[392054428,1761123041301,-1449.63305207,0.00033009,2]
[392054429,1761123041310,-746.02,0.00033018,7]
[392054430,1761123041319,-357.0,0.00033132,3]
[392054431,1761123041329,-1444.14129314,0.00033139,2]
[392054432,1761123041338,-500.0,0.00033142,120]
[392054433,1761123041348,-419.0,0.00033143,2]
[392054434,1761123041357,-3923.0,0.00033193,2]
[392054435,1761123041366,-1280.0,0.00033231,3]
[392054436,1761123041376,-150.0,0.0003325,120]
[392054437,1761123041385,-419.0,0.00033387,7]
[392054438,1761123041394,-1444.14129314,0.00033432,2]
[392054439,1761123041403,-150.0,0.00033443,120]
[392054440,1761123041411,-3096.14635965,0.00033453,2]
[392054441,1761123041421,-151.7327196,0.00033453,2]
[392054442,1761123041430,-180.02783446,0.00033462,15]
[392054443,1761123041440,-600.0,0.00033466,7]
[392054444,1761123041449,-1500.0,0.00033468,5]
[392054445,1761123041458,-10870.575896,0.0003354,2]
[392054446,1761123041467,-162.88,0.00033543,2]
[392054447,1761123041477,-530.59397211,0.00033549,120]
[392054448,1761123041487,-502.58568334,0.00033549,120]
[392054449,1761123041495,-76094.0312721,0.0003355,2]
[392054450,1761123041504,-10870.575896,0.00033552,2]
[392054451,1761123041514,-1000.0,0.00033559,2]
[392054452,1761123041523,-537.3,0.00033559,2]
[392054453,1761123041532,-164592.4527,0.0003356,2]
[392054454,1761123041542,-500.0,0.00033562,7]
[392054455,1761123041552,-500.0,0.00033573,5]
[392054456,1761123041560,-500.0,0.00033573,5]
[392054457,1761123041568,-500.0,0.00033573,5]
[392054458,1761123041578,-500.0,0.00033573,5]
[392054459,1761123041587,-500.0,0.00033573,5]
[392054460,1761123041596,-500.0,0.00033573,5]
[392054461,1761123041606,-500.0,0.00033573,5]
[392054462,1761123041616,-500.0,0.00033573,5]
[392054463,1761123041628,-500.0,0.00033573,5]
[392054464,1761123041637,-500.0,0.00033573,5]
[392054465,1761123041646,-500.0,0.00033573,5]
[392054466,1761123041655,-500.0,0.00033573,5]
[392054467,1761123041664,-500.0,0.00033573,5]
[392054468,1761123041674,-502.48696503,0.00033573,5]
[392054469,1761123041683,-500.22302508,0.00033573,5]
[392054470,1761123041692,-198.52864669,0.00033573,5]
[392054471,1761123041701,-500.0,0.00033573,5]
[392054472,1761123041710,-500.0,0.00033573,5]
[392054473,1761123041719,-500.0,0.00033573,5]
[392054474,1761123041728,-502.53927654,0.00033573,5]
[392054475,1761123041737,-3096.14635962,0.00033614,2]
[392054476,1761123041746,-1238.0,0.0003364,2]
[392054477,1761123041756,-235.18,0.00033659,120]
[392054478,1761123041765,-500.0,0.00033659,120]
[392054479,1761123041775,-500.0,0.00033659,120]
[392054480,1761123041784,-10870.575896,0.0003368,2]
[392054481,1761123041794,-1009.0,0.000337,7]
[392054482,1761123041803,-385.66364386,0.00033701,2]
[392054483,1761123041812,-1444.14129314,0.00033726,2]